fUST/lending_fUST_20250911
["ID","MTS","AMOUNT","RATE_DAILY","PERIOD"]
[384823305,1757574644317,-245.80634212,0.00015068,2]
[384823306,1757574644327,-480.0,0.00015068,2]
[384823307,1757574644336,-480.0,0.00015068,2]
[384823308,1757574644346,-480.0,0.00015068,2]
[384823309,1757574644355,-480.0,0.00015068,2]
[384823310,1757574644365,-480.0,0.00015068,2]
[384823311,1757574644374,-480.0,0.00015068,2]
[384823312,1757574644384,-1835.31,0.00015068,2]
[384823313,1757574644393,-480.0,0.00015068,2]
[384823314,1757574644402,-480.0,0.00015068,2]
[384823315,1757574644412,-480.0,0.00015068,2]
[384823316,1757574644421,-480.0,0.00015068,2]
[384823317,1757574644431,-1811.64,0.00015068,2]
[384823318,1757574644440,-480.0,0.00015068,2]
[384823319,1757574644450,-480.0,0.00015068,2]
[384823320,1757574644459,-221.496823,0.00015068,2]
[384823321,1757574644469,-500.0,0.00015068,2]
[384823322,1757574644478,-1000.0,0.00015073,2]
[384823323,1757574644487,-1000.0,0.00015073,2]
[384823324,1757574644497,-490.37992502,0.00015073,2]
[384823325,1757574644507,-1000.0,0.00015075,2]
[384823326,1757574644516,-1000.0,0.00015075,2]
[384823327,1757574644526,-1000.0,0.00015075,2]
[384823328,1757574644536,-1000.0,0.00015075,2]
[384823329,1757574644545,-1000.0,0.0001509,2]
[384823330,1757574644555,-546.68917622,0.0001509,2]
[384823331,1757574644564,-1006.97,0.00015174,2]
[384823332,1757574644575,-634.0,0.00015174,2]
[384823333,1757574644584,-2155.0,0.00015174,2]
[384823334,1757574644594,-409.0,0.00015174,2]
[384823335,1757574644603,-1000.0,0.00015305,2]
[384823336,1757574644612,-1000.0,0.00015305,2]
[384823337,1757574644622,-1000.0,0.00015305,2]
[384823338,1757574644631,-160.87432306,0.00015305,2]
[384823339,1757574644640,-480.0,0.00015342,2]
[384823340,1757574644650,-1465.17,0.00015342,2]
[384823341,1757574644661,-480.0,0.00015342,2]
[384823342,1757574644672,-1327.18,0.00015342,2]
[384823343,1757574644681,-480.0,0.00015342,2]
[384823344,1757574644690,-480.0,0.00015342,2]
[384823345,1757574644704,-480.0,0.00015342,2]
[384823346,1757574644713,-480.0,0.00015342,2]
[384823347,1757574644722,-480.0,0.00015342,2]
[384823348,1757574644731,-480.0,0.00015342,2]
[384823349,1757574644742,-480.0,0.00015342,2]
[384823350,1757574644752,-573.55101016,0.00015342,2]
[384823351,1757574644761,-480.0,0.00015342,2]
[384823352,1757574644771,-1835.31,0.00015342,2]
[384823353,1757574644782,-480.0,0.00015342,2]
[384823354,1757574644792,-480.0,0.00015342,2]
[384823355,1757574644802,-480.0,0.00015342,2]
[384823356,1757574644811,-1811.64,0.00015342,2]
[384823357,1757574644821,-480.0,0.00015342,2]
[384823358,1757574644830,-480.0,0.00015342,2]
[384823359,1757574644839,-483.26090418,0.00015355,2]
[384823360,1757574644848,-1500.0,0.0001536,2]
[384823361,1757574644857,-720.0,0.00015367,2]
[384823362,1757574644867,-824.28321046,0.00015437,2]
[384823363,1757574644876,-501.95754405,0.00015437,2]
[384823364,1757574644886,-480.0,0.00015616,2]
[384823365,1757574644895,-1465.17,0.00015616,2]
[384823366,1757574644905,-480.0,0.00015616,2]
[384823367,1757574644915,-1327.18,0.00015616,2]
[384823368,1757574644925,-480.0,0.00015616,2]
[384823369,1757574644934,-480.0,0.00015616,2]
[384823370,1757574644943,-480.0,0.00015616,2]
[384823371,1757574644952,-480.0,0.00015616,2]
[384823372,1757574644962,-480.0,0.00015616,2]
[384823373,1757574644971,-480.0,0.00015616,2]
[384823374,1757574644980,-480.0,0.00015616,2]
[384823375,1757574644989,-1835.31,0.00015616,2]
[384823376,1757574644999,-480.0,0.00015616,2]
[384823377,1757574645009,-480.0,0.00015616,2]
[384823378,1757574645018,-480.0,0.00015616,2]
[384823379,1757574645027,-1811.64,0.00015616,2]
[384823380,1757574645037,-480.0,0.00015616,2]
[384823381,1757574645046,-480.0,0.00015616,2]
[384823382,1757574645056,-1500.0,0.00015621,2]
[384823383,1757574645065,-1500.0,0.00015621,2]
[384823384,1757574645077,-1500.0,0.00015623,2]
[384823385,1757574645087,-1500.0,0.00015623,2]
[384823386,1757574645096,-506.81842861,0.00015623,2]
[384823387,1757574645105,-1500.0,0.00015623,2]
[384823388,1757574645114,-160.0,0.00015627,2]
[384823389,1757574645123,-504.15667014,0.00015638,2]
[384823390,1757574645133,-373.64259799,0.00015742,2]
[384823391,1757574645142,-411.06922566,0.00015853,2]
[384823392,1757574645152,-1500.0,0.00015853,2]
[384823393,1757574645163,-1504.63130133,0.00015853,2]
[384823394,1757574645173,-3526.78403203,0.00015872,2]
[384823395,1757574645182,-169.55057474,0.0001589,2]
[384823396,1757574645191,-1465.17,0.0001589,2]
[384823397,1757574645200,-1327.18,0.0001589,2]
[384823398,1757574645210,-480.0,0.0001589,2]
[384823399,1757574645219,-480.0,0.0001589,2]
[384823400,1757574645228,-480.0,0.0001589,2]
[384823401,1757574645238,-535.57995083,0.0001589,2]
[384823402,1757574645248,-480.0,0.0001589,2]
[384823403,1757574645257,-480.0,0.0001589,2]
[384823404,1757574645266,-1835.31,0.0001589,2]
[384823405,1757574645275,-480.0,0.0001589,2]
[384823406,1757574645284,-480.0,0.0001589,2]
[384823407,1757574645293,-1811.64,0.0001589,2]
[384823408,1757574645302,-480.0,0.0001589,2]
[384823409,1757574645311,-1465.17,0.00016164,2]
[384823410,1757574645320,-1327.18,0.00016164,2]
[384823411,1757574645329,-480.0,0.00016164,2]
[384823412,1757574645338,-480.0,0.00016164,2]
[384823413,1757574645347,-480.0,0.00016164,2]
[384823414,1757574645356,-480.0,0.00016164,2]
[384823415,1757574645366,-480.0,0.00016164,2]
[384823416,1757574645375,-1835.31,0.00016164,2]
[384823417,1757574645383,-480.0,0.00016164,2]
[384823418,1757574645392,-480.0,0.00016164,2]
[384823419,1757574645402,-1811.64,0.00016164,2]
[384823421,1757574645496,-480.0,0.00016164,2]
[384823422,1757574645505,-2000.0,0.00016169,2]
[384823424,1757574645515,-1102.98973203,0.00016169,2]
[384823425,1757574645524,-511.64646584,0.00016171,2]
[384823426,1757574645535,-2000.0,0.00016171,2]
[384823427,1757574645544,-2000.0,0.00016171,2]
[384823428,1757574645553,-260.0,0.00016175,2]
[384823430,1757574645563,-2000.0,0.00016401,2]
[384823431,1757574645572,-1465.17,0.00016438,2]
[384823433,1757574645582,-1327.18,0.00016438,2]
[384823435,1757574645592,-480.0,0.00016438,2]
[384823437,1757574645601,-480.0,0.00016438,2]
[384823439,1757574645611,-480.0,0.00016438,2]
[384823441,1757574645620,-480.0,0.00016438,2]
[384823443,1757574645629,-480.0,0.00016438,2]
[384823445,1757574645638,-1835.31,0.00016438,2]
[384823446,1757574645647,-480.0,0.00016438,2]
[384823447,1757574645656,-480.0,0.00016438,2]
[384823448,1757574645666,-1811.64,0.00016438,2]
[384823449,1757574645675,-480.0,0.00016438,2]
[384823450,1757574645685,-237.4687686,0.00016506,2]
[384823452,1757574645696,-158.094267,0.00016618,2]
[384823453,1757574645708,-398.359689,0.00016618,2]
[384823455,1757574645717,-1465.17,0.00016712,2]
[384823456,1757574645727,-1327.18,0.00016712,2]
[384823457,1757574645736,-480.0,0.00016712,2]
[384823458,1757574645747,-480.0,0.00016712,2]
[384823459,1757574645756,-480.0,0.00016712,2]
[384823460,1757574645766,-480.0,0.00016712,2]
[384823461,1757574645775,-237.61861701,0.00016712,2]
[384823462,1757574645785,-1835.31,0.00016712,2]
[384823463,1757574645794,-480.0,0.00016712,2]
[384823464,1757574645803,-480.0,0.00016712,2]
[384823465,1757574645812,-1811.64,0.00016712,2]
[384823466,1757574645822,-511.45388624,0.00016712,2]
[384823467,1757574645831,-500.0,0.00016717,2]
[384823468,1757574645840,-360.0,0.00016723,2]
[384823469,1757574645850,-864.0,0.00016904,2]
[384823470,1757574645859,-1465.17,0.00016986,2]
[384823471,1757574645869,-1327.18,0.00016986,2]
[384823472,1757574645879,-480.0,0.00016986,2]
[384823473,1757574645888,-157.0,0.00016986,2]
[384823474,1757574645897,-157.30750495,0.00016986,2]
[384823475,1757574645907,-157.0,0.00016986,2]
[384823476,1757574645917,-500.0,0.00016986,2]
[384823478,1757574645927,-157.0,0.00016986,2]
[384823479,1757574645936,-157.0,0.00016986,2]
[384823481,1757574645945,-480.0,0.00016986,2]
[384823482,1757574645954,-480.0,0.00016986,2]
[384823483,1757574645963,-480.0,0.00016986,2]
[384823484,1757574645972,-157.0,0.00016986,2]
[384823485,1757574645981,-157.0,0.00016986,2]
[384823486,1757574645994,-157.0,0.00016986,2]
[384823487,1757574646004,-302.47220801,0.00016986,2]
[384823488,1757574646013,-158.77468404,0.00016986,2]
[384823489,1757574646022,-157.0,0.00016986,2]
[384823490,1757574646032,-1835.31,0.00016986,2]
[384823492,1757574646041,-157.0,0.00016986,2]
[384823493,1757574646050,-247.77503244,0.00016986,2]
[384823494,1757574646059,-157.0,0.00016986,2]
[384823495,1757574646069,-157.0,0.00016986,2]
[384823496,1757574646078,-157.0,0.00016986,2]
[384823497,1757574646087,-614.34391163,0.00016986,2]
[384823498,1757574646097,-480.0,0.00016986,2]
[384823499,1757574646107,-1811.64,0.00016986,2]
[384823500,1757574646116,-157.0,0.00016986,2]
[384823501,1757574646125,-881.565,0.00017074,2]
[384823502,1757574646134,-178.85346485,0.00017074,2]
[384823503,1757574646144,-157.0,0.0001726,2]
[384823504,1757574646153,-180.0,0.0001726,2]
[384823505,1757574646162,-500.0,0.0001726,2]
[384823506,1757574646172,-157.0,0.0001726,2]
[384823507,1757574646181,-157.0,0.0001726,2]
[384823508,1757574646190,-157.0,0.0001726,2]
[384823509,1757574646200,-157.0,0.0001726,2]
[384823510,1757574646209,-157.0,0.0001726,2]
[384823511,1757574646218,-157.0,0.0001726,2]
[384823512,1757574646227,-173.67,0.0001726,2]
[384823513,1757574646237,-157.0,0.0001726,2]
[384823514,1757574646246,-1465.17,0.0001726,2]
[384823515,1757574646256,-1327.18,0.0001726,2]
[384823516,1757574646266,-480.0,0.0001726,2]
[384823517,1757574646275,-480.0,0.0001726,2]
[384823518,1757574646285,-480.0,0.0001726,2]
[384823519,1757574646294,-480.0,0.0001726,2]
[384823520,1757574646304,-1835.31,0.0001726,2]
[384823521,1757574646314,-480.0,0.0001726,2]
[384823522,1757574646324,-1811.64,0.0001726,2]
[384823523,1757574646334,-460.0,0.00017271,2]
[384823524,1757574646343,-323.0,0.00017415,2]
[384823525,1757574646353,-168.0,0.00017532,2]
[384823526,1757574646362,-168.0,0.00017533,2]
[384823527,1757574646372,-180.0,0.00017534,2]
[384823528,1757574646382,-500.0,0.00017534,2]
[384823529,1757574646391,-302.0,0.00017534,2]
[384823530,1757574646401,-268.65618874,0.00017534,2]
[384823531,1757574646411,-157.0,0.00017534,2]
[384823532,1757574646421,-186.0,0.00017534,2]
[384823533,1757574646430,-157.0,0.00017534,2]
[384823534,1757574646440,-282.58799711,0.00017534,2]
[384823535,1757574646449,-157.0,0.00017534,2]
[384823536,1757574646459,-1465.17,0.00017534,2]
[384823537,1757574646468,-1327.18,0.00017534,2]
[384823538,1757574646477,-480.0,0.00017534,2]
[384823539,1757574646486,-61.81089772,0.00017534,2]
[384823540,1757574647729,-14063.46420476,0.00014146,2]
[384823541,1757574647741,-418.18910228,0.00017534,2]
[384823542,1757574647750,-480.0,0.00017534,2]
[384823543,1757574647760,-480.0,0.00017534,2]
[384823544,1757574647769,-1835.31,0.00017534,2]
[384823545,1757574647786,-480.0,0.00017534,2]
[384823546,1757574647796,-1811.64,0.00017534,2]
[384823547,1757574647806,-176.1196279,0.00017632,2]
[384823548,1757574647815,-3160.8437406,0.00017728,2]
[384823549,1757574647825,-500.0,0.00017808,2]
[384823550,1757574647834,-157.0,0.00017808,2]
[384823551,1757574647844,-186.0,0.00017808,2]
[384823552,1757574647853,-268.92818536,0.00017808,2]
[384823553,1757574647863,-157.0,0.00017808,2]
[384823554,1757574647873,-157.0,0.00017808,2]
[384823555,1757574647887,-157.0,0.00017808,2]
[384823556,1757574647898,-157.0,0.00017808,2]
[384823557,1757574647907,-157.0,0.00017808,2]
[384823558,1757574647918,-157.0,0.00017808,2]
[384823559,1757574647928,-500.0,0.00017808,2]
[384823560,1757574647938,-157.0,0.00017808,2]
[384823561,1757574647949,-157.0,0.00017808,2]
[384823562,1757574647962,-500.0,0.00017808,2]
[384823563,1757574647980,-157.0,0.00017808,2]
[384823564,1757574647989,-157.0,0.00017808,2]
[384823565,1757574647999,-157.0,0.00017808,2]
[384823566,1757574648010,-1465.17,0.00017808,2]
[384823567,1757574648020,-1327.18,0.00017808,2]
[384823568,1757574648029,-480.0,0.00017808,2]
[384823569,1757574648039,-480.0,0.00017808,2]
[384823570,1757574648048,-480.0,0.00017808,2]
[384823571,1757574648058,-480.0,0.00017808,2]
[384823572,1757574648068,-1835.31,0.00017808,2]
[384823573,1757574648079,-151.0,0.00017808,2]
[384823574,1757574648088,-151.709117,0.00017808,2]
[384823575,1757574648098,-169.558092,0.00017808,2]
[384823576,1757574648108,-169.558092,0.00017808,2]
[384823577,1757574648117,-169.558092,0.00017808,2]
[384823578,1757574648126,-169.558092,0.00017808,2]
[384823579,1757574648136,-151.318523,0.00017808,2]
[384823580,1757574648146,-480.0,0.00017808,2]
[384823581,1757574648157,-1811.64,0.00017808,2]
[384823582,1757574648166,-151.0,0.00017808,2]
[384823583,1757574648177,-151.0,0.00017808,2]
[384823584,1757574648187,-151.0,0.00017808,2]
[384823585,1757574648197,-151.0,0.00017808,2]
[384823586,1757574648207,-251.074136,0.00017808,2]
[384823587,1757574648216,-560.0,0.00017818,2]
[384823588,1757574648226,-3526.78403203,0.00017871,2]
[384823589,1757574648239,-373.64259799,0.00017887,2]
[384823590,1757574648249,-151.0,0.000179,2]
[384823591,1757574648258,-168.0,0.00017929,2]
[384823592,1757574648268,-250.0,0.00017968,2]
[384823593,1757574648277,-3369.6902872,0.00017987,2]
[384823594,1757574648287,-532.5590871,0.00018082,2]
[384823595,1757574648297,-157.0,0.00018082,2]
[384823596,1757574648307,-157.19242453,0.00018082,2]
[384823597,1757574648317,-255.15129915,0.00018082,2]
[384823598,1757574648327,-157.0,0.00018082,2]
[384823599,1757574648337,-157.0,0.00018082,2]
[384823600,1757574648346,-157.0,0.00018082,2]
[384823601,1757574648356,-157.0,0.00018082,2]
[384823602,1757574648366,-500.0,0.00018082,2]
[384823603,1757574648376,-157.0,0.00018082,2]
[384823604,1757574648385,-157.3871034,0.00018082,2]
[384823605,1757574648395,-628.0,0.00018082,2]
[384823606,1757574648404,-157.4039483,0.00018082,2]
[384823607,1757574648414,-302.27211697,0.00018082,2]
[384823608,1757574648425,-164.24058408,0.00018082,2]
[384823609,1757574648435,-1465.17,0.00018082,2]
[384823610,1757574648444,-1327.18,0.00018082,2]
[384823611,1757574648454,-480.0,0.00018082,2]
[384823612,1757574648464,-480.0,0.00018082,2]
[384823613,1757574648473,-480.0,0.00018082,2]
[384823614,1757574648483,-480.0,0.00018082,2]
[384823615,1757574648493,-151.954609,0.00018082,2]
[384823616,1757574648503,-151.0,0.00018082,2]
[384823617,1757574648513,-151.0,0.00018082,2]
[384823618,1757574648523,-151.0,0.00018082,2]
[384823619,1757574648533,-151.0,0.00018082,2]
[384823620,1757574648543,-151.0,0.00018082,2]
[384823621,1757574648553,-1835.31,0.00018082,2]
[384823622,1757574648562,-151.0,0.00018082,2]
[384823623,1757574648573,-151.753326,0.00018082,2]
[384823624,1757574648583,-151.0,0.00018082,2]
[384823625,1757574648593,-151.0,0.00018082,2]
[384823626,1757574648603,-186.631144,0.00018082,2]
[384823627,1757574648613,-151.0,0.00018082,2]
[384823628,1757574648623,-151.0,0.00018082,2]
[384823629,1757574648633,-151.0,0.00018082,2]
[384823630,1757574648643,-151.0,0.00018082,2]
[384823631,1757574648653,-480.0,0.00018082,2]
[384823632,1757574648663,-1811.64,0.00018082,2]
[384823633,1757574648677,-151.0,0.0001815,2]
[384823634,1757574648687,-151.0,0.0001815,2]
[384823635,1757574648699,-151.957432,0.0001815,2]
[384823636,1757574648717,-106.80960436,0.0001815,2]
[384823637,1757574648958,-600.0,0.00018013,2]
[384823641,1757574673679,600.0,0.00013561,2]
[384823642,1757574701085,356.750507,0.00024,30]
[384823643,1757574727708,1000.0,0.00018966,20]
[384823651,1757574822684,-558.71353795,0.00013598,2]
[384823652,1757574832703,-1117.4270759,0.00013598,2]
[384823653,1757574837236,-2234.8541518,0.00013598,2]
[384823654,1757574847761,-4469.7083036,0.00013598,2]
[384823655,1757574857753,-1060.5933928,0.00013598,2]
[384823656,1757574857822,-480.0,0.00013698,2]
[384823657,1757574857888,-480.0,0.00013698,2]
[384823658,1757574857950,-480.0,0.00013698,2]
[384823659,1757574858014,-438.1598497,0.00013698,2]
[384823660,1757574858080,-480.0,0.00013698,2]
[384823661,1757574858361,-535.3,0.00013698,2]
[384823662,1757574858433,-480.0,0.00013698,2]
[384823663,1757574858496,-480.0,0.00013698,2]
[384823664,1757574907791,-1668.0,0.00013561,2]
[384823665,1757574907860,-287.0,0.00013697,2]
[384823666,1757574907928,-1200.0,0.00013697,2]
[384823667,1757574907994,-480.0,0.00013698,2]
[384823668,1757574908062,-480.0,0.00013698,2]
[384823669,1757574908128,-511.783502,0.00013698,2]
[384823670,1757574908191,-266.442996,0.00013698,2]
[384823671,1757574917800,-213.557004,0.00013698,2]
[384823672,1757574917869,-480.0,0.00013698,2]
[384823673,1757574917943,-480.0,0.00013698,2]
[384823674,1757574918017,-614.34391163,0.00013698,2]
[384823675,1757574918084,-480.0,0.00013698,2]
[384823676,1757574918151,-480.0,0.00013698,2]
[384823677,1757574918215,-480.0,0.00013698,2]
[384823678,1757574918280,-480.0,0.00013698,2]
[384823679,1757574918348,-481.44026415,0.00013698,2]
[384823680,1757574918418,-480.0,0.00013698,2]
[384823681,1757574918493,-9.79764044,0.00013698,2]
[384823682,1757574927840,-641.73235956,0.00013698,2]
[384823683,1757574927910,-1008.10669318,0.00013698,2]
[384823684,1757574927979,-480.0,0.00013698,2]
[384823685,1757574928053,-830.33,0.00013698,2]
[384823686,1757574928123,-481.94000333,0.00013698,2]
[384823687,1757574928194,-480.0,0.00013698,2]
[384823688,1757574928265,-663.59,0.00013698,2]
[384823689,1757574928335,-348.61188786,0.00013698,2]
[384823690,1757574929660,159.94452761,0.00017,7]
[384823692,1757574982880,-1668.0,0.00013561,2]
[384823693,1757574982945,-131.38811214,0.00013698,2]
[384823694,1757574983009,-480.0,0.00013698,2]
[384823695,1757574983073,-480.0,0.00013698,2]
[384823696,1757574983138,-480.0,0.00013698,2]
[384823697,1757574983201,-480.0,0.00013698,2]
[384823698,1757574983266,-480.0,0.00013698,2]
[384823699,1757574983335,-480.0,0.00013698,2]
[384823700,1757574983406,-161.23377572,0.00013698,2]
[384823702,1757575123061,-376.57657073,0.00013598,2]
[384823703,1757575123127,-1200.0,0.00013697,2]
[384823704,1757575123198,-500.0,0.00013697,2]
[384823705,1757575123273,-307.43453656,0.00013697,2]
[384823706,1757575123344,-500.0,0.00013697,2]
[384823707,1757575123412,-500.0,0.00013697,2]
[384823708,1757575123474,-500.0,0.00013697,2]
[384823709,1757575123540,-500.0,0.00013697,2]
[384823710,1757575123733,-500.0,0.00013697,2]
[384823711,1757575124051,-500.0,0.00013697,2]
[384823712,1757575124112,-500.0,0.00013697,2]
[384823713,1757575124175,-500.0,0.00013697,2]
[384823714,1757575124235,-500.0,0.00013697,2]
[384823715,1757575124302,-500.0,0.00013697,2]
[384823716,1757575124367,-500.0,0.00013697,2]
[384823717,1757575124430,-500.0,0.00013697,2]
[384823718,1757575124494,-500.0,0.00013697,2]
[384823719,1757575124561,-500.0,0.00013697,2]
[384823720,1757575124631,-500.0,0.00013697,2]
[384823721,1757575133037,-500.0,0.00013697,2]
[384823722,1757575133105,-500.0,0.00013697,2]
[384823723,1757575133175,-500.0,0.00013697,2]
[384823724,1757575133240,-500.0,0.00013697,2]
[384823725,1757575133316,-500.0,0.00013697,2]
[384823726,1757575133396,-500.0,0.00013697,2]
[384823727,1757575133474,-500.0,0.00013697,2]
[384823728,1757575133543,-500.0,0.00013697,2]
[384823729,1757575133612,-500.0,0.00013697,2]
[384823730,1757575133681,-500.0,0.00013697,2]
[384823740,1757575244826,463.503543,0.00024,30]
[384823741,1757575267502,-168.0,0.00013424,2]
[384823742,1757575267579,-168.0,0.0001356,2]
[384823743,1757575267649,-300.0,0.00013696,2]
[384823744,1757575267721,-147.51256458,0.00013697,2]
[384823745,1757575278272,-1567.02512916,0.00013697,2]
[384823746,1757575288270,-3134.05025832,0.00013697,2]
[384823747,1757575296090,158.042451,0.00024,30]
[384823748,1757575307098,-3731.90948336,0.00013697,2]
[384823749,1757575307166,-500.0,0.00013697,2]
[384823750,1757575307235,-529.92560063,0.00013697,2]
[384823751,1757575343861,403.72,0.00012329,2]
[384823752,1757575354257,1108.62,0.00012329,2]
[384823753,1757575364982,923.85,0.00012329,2]
[384823754,1757575375364,769.87,0.00012329,2]
[384823755,1757575385832,641.56,0.00012329,2]
[384823756,1757575396208,534.64,0.00012329,2]
[384823757,1757575406951,534.64,0.00012329,2]
[384823758,1757575417341,356.42,0.00012329,2]
[384823759,1757575427981,297.02,0.00012329,2]
[384823760,1757575438670,247.52,0.00012329,2]
[384823761,1757575449229,206.26,0.00012329,2]
[384823766,1757575459627,171.89,0.00012329,2]
[384823767,1757575463406,-329.50449938,0.00013598,2]
[384823768,1757575463489,-300.0,0.00013696,2]
[384823769,1757575470191,859.45,0.00012329,2]
[384823770,1757575473463,-9164.08552035,0.00013697,2]
[384823771,1757575473691,-10000.01,0.00013697,2]
[384823772,1757575473945,-3572.05629703,0.00013697,2]
[384823773,1757575474018,-500.0,0.00013697,2]
[384823774,1757575474087,-500.0,0.00013697,2]
[384823775,1757575474158,-355.89740594,0.00013697,2]
[384823776,1757575474380,-144.10259406,0.00013697,2]
[384823777,1757575480807,204.61,0.00012329,2]
[384823778,1757575491451,808.76,0.00012329,2]
[384823779,1757575501866,808.76,0.00012329,2]
[384823783,1757575512555,539.17,0.00012329,2]
[384823784,1757575513956,-1668.0,0.00013424,2]
[384823785,1757575514043,-1668.0,0.0001356,2]
[384823786,1757575514137,-294.40859291,0.0001369,2]
[384823787,1757575514244,-300.0,0.00013696,2]
[384823788,1757575514354,-500.0,0.00013697,2]
[384823789,1757575514444,-500.0,0.00013697,2]
[384823790,1757575522925,449.31,0.00012329,2]
[384823791,1757575533393,374.43,0.00012329,2]
[384823792,1757575543806,312.02,0.00012329,2]
[384823793,1757575554437,260.02,0.00012329,2]
[384823795,1757575564947,216.68,0.00012329,2]
[384823799,1757575575377,180.57,0.00012329,2]
[384823800,1757575585784,150.47,0.00012329,2]
[384823801,1757575596394,752.39,0.00012329,2]
[384823802,1757575597842,314.86076704,0.00013287,2]
[384823805,1757575616294,7438.56923296,0.00012858,2]
[384823806,1757575616372,3108.06826884,0.00012858,2]
[384827926,1757575832356,-288.31643694,0.00013598,2]
[384827927,1757575832366,-1200.0,0.00013696,2]
[384827928,1757575832375,-43.13355363,0.00013697,2]
[384828001,1757575838601,-456.86644637,0.00013697,2]
[384828002,1757575838611,-500.0,0.00013697,2]
[384828003,1757575838621,-500.0,0.00013697,2]
[384828004,1757575838631,-500.0,0.00013697,2]
[384828005,1757575838640,-500.0,0.00013697,2]
[384828007,1757575838649,-500.0,0.00013697,2]
[384828008,1757575838659,-500.0,0.00013697,2]
[384828009,1757575838669,-500.0,0.00013697,2]
[384828010,1757575838680,-192.19822015,0.00013697,2]
[384828011,1757575838690,-500.0,0.00013697,2]
[384828012,1757575838700,-500.0,0.00013697,2]
[384828013,1757575838710,-228.48304193,0.00013697,2]
[384828014,1757575838720,-480.0,0.00013698,2]
[384828015,1757575838729,-280.44965648,0.00013698,2]
[384828017,1757575838739,-480.0,0.00013698,2]
[384828018,1757575838751,-480.0,0.00013698,2]
[384828019,1757575838760,-480.0,0.00013698,2]
[384828020,1757575838770,-480.0,0.00013698,2]
[384828021,1757575838779,-480.0,0.00013698,2]
[384828022,1757575838789,-480.0,0.00013698,2]
[384828023,1757575838799,-480.0,0.00013698,2]
[384828024,1757575838808,-481.46141237,0.00013698,2]
[384828025,1757575838817,-481.0162263,0.00013698,2]
[384828027,1757575838826,-480.0,0.00013698,2]
[384828028,1757575838836,-480.0,0.00013698,2]
[384828029,1757575838846,-480.70159995,0.00013698,2]
[384828030,1757575838855,-480.0,0.00013698,2]
[384828031,1757575838865,-482.0525713,0.00013698,2]
[384828032,1757575838874,-480.0,0.00013698,2]
[384828033,1757575838884,-480.0,0.00013698,2]
[384828034,1757575838894,-480.0,0.00013698,2]
[384828035,1757575838903,-480.0,0.00013698,2]
[384828037,1757575838914,-480.0,0.00013698,2]
[384828038,1757575838924,-480.0,0.00013698,2]
[384828039,1757575838933,-480.0,0.00013698,2]
[384828040,1757575838943,-480.0,0.00013698,2]
[384828041,1757575838952,-480.0,0.00013698,2]
[384828042,1757575838961,-480.0,0.00013698,2]
[384828043,1757575838971,-378.17148043,0.00013698,2]
[384828044,1757575838980,-482.05577289,0.00013698,2]
[384828045,1757575838990,-480.0,0.00013698,2]
[384828047,1757575838999,-480.0,0.00013698,2]
[384828048,1757575839008,-481.30862865,0.00013698,2]
[384828049,1757575839018,-480.0,0.00013698,2]